Cogmind - Beta 14 @@@ ROGUE MODE // 2024.11.19 @ 17:53:57 Player: KURIIRI Result: Self-destructed Performance ------------- Evolutions (2) 1000 Regions Visited (7) 1400 Robots Destroyed (97) 485 Value Destroyed (2512) 2512 Prototype IDs (33) 660 Alien Tech Used (0) 0 Bonus (402) 402 TOTAL SCORE: 6459 Bonus ------- High Alert Combat Kills 56 Follower Combat Kills 99 Aligned with FarCom 300 Friendly Fire -53 Cogmind --------- Core Integrity 415/550 Matter 280/300 Energy 290/290 System Corruption 0% Temperature Cool (0) Movement Treading (160) Location -8/Materials Parts ------- > --- POWER (1) -------- Improved Deuterium Engine > --- PROPULSION (4) --- Light Treads Light Treads Light Treads Light Treads > --- UTILITY (4) ------ Improved Heat Sink Large Storage Unit Hardened Light Armor Plating Hacking Suite > --- WEAPON (2) ------- Cooled Particle Cannon Cooled Particle Cannon > --- INVENTORY (15) --- Improved Deuterium Engine Improved Deuterium Engine Fission Core Light Treads Trap Scanner Advanced Targeting Computer Light Armor Plating Trap Reconfigurator Sensor Drone Bay (20/20) Advanced Beam Rifle Cooled Particle Cannon Cooled Particle Cannon Flak Cannon Missile Launcher Heavy Mace Peak State ------------ > --- POWER ------------ Improved Deuterium Engine > --- PROPULSION ------- Light Treads Light Treads Light Treads Light Treads > --- UTILITY ---------- Improved Heat Sink Large Storage Unit Hardened Light Armor Plating Hacking Suite > --- WEAPON ----------- Cooled Particle Cannon Cooled Particle Cannon > --- INVENTORY -------- Improved Deuterium Engine Improved Deuterium Engine Fission Core Light Treads Trap Scanner Advanced Targeting Computer Light Armor Plating Trap Reconfigurator Sensor Drone Bay Advanced Beam Rifle Cooled Particle Cannon Cooled Particle Cannon Flak Cannon Missile Launcher Heavy Mace [Rating: 33] Favorites ----------- Power Cooled Ion Engine Engine Cooled Ion Engine Power Core Light Nuclear Core Propulsion Light Treads Treads Light Treads Utility Medium Storage Unit Device Improved Heat Sink Storage Medium Storage Unit Hackware Hacking Suite Protection Hardened Light Armor Plating Weapon Advanced Beam Cannon Energy Gun EM Pulse Gun Energy Cannon Advanced Beam Cannon Ballistic Gun Assault Rifle Launcher Missile Launcher Impact Weapon Heavy Mace Build | -11 -10 -10 -9 -9 -9 -8 -8 ------- Run | Yrd Mat Min Mat Min Exi Min Mat Slots Evolved 4 | . . . 2 . . . 2 Power . | . . . . . . . . Propulsion 2 | . . . 1 . . . 1 Utility 2 | . . . 1 . . . 1 Weapon . | . . . . . . . . Parts Attached 65 | 6 11 3 15 2 1 4 23 Power 6 | 1 . 1 3 . . . 1 Engine 4 | 1 . . 2 . . . 1 Core 2 | . . 1 1 . . . . Reactor . | . . . . . . . . Propulsion 11 | 2 2 . 2 . . 1 4 Treads 11 | 2 2 . 2 . . 1 4 Leg . | . . . . . . . . Wheel . | . . . . . . . . Hover . | . . . . . . . . Flight . | . . . . . . . . Utility 13 | 1 2 2 4 . 1 1 2 Device 6 | . 1 2 2 . . 1 . Storage 3 | 1 1 . . . . . 1 Processor . | . . . . . . . . Hackware 1 | . . . . . . . 1 Protection 3 | . . . 2 . 1 . . Artifact . | . . . . . . . . Weapon 35 | 2 7 . 6 2 . 2 16 Energy Gun 10 | 2 4 . 1 . . . 3 Energy Cannon 16 | . . . 4 1 . . 11 Ballistic Gun 1 | . 1 . . . . . . Ballistic Cannon . | . . . . . . . . Launcher 6 | . 2 . . 1 . 2 1 Special Weapon . | . . . . . . . . Impact Weapon 2 | . . . 1 . . . 1 Slashing Weapon . | . . . . . . . . Piercing Weapon . | . . . . . . . . Special Melee Weapon . | . . . . . . . . Unidentified Prototypes 8 | . . 1 4 . . . 3 Parts Lost 4 | . . . 2 . . . 2 Power . | . . . . . . . . Propulsion 1 | . . . . . . . 1 Utility 2 | . . . 2 . . . . Weapon 1 | . . . . . . . 1 Highest Loss Streak 1 | . . . 1 . . . 1 To Critical Strikes . | . . . . . . . . Average Slot Usage (%) 99 | . 99 100 98 100 100 100 99 Engine 9 | . 14 . 8 11 11 11 9 Core 1 | . . 13 2 . . . . Treads 32 | . 28 28 33 33 33 33 35 Device 10 | . 12 14 10 11 11 11 9 Storage 11 | . 15 14 11 11 11 11 9 Hackware 2 | . . . . . . . 9 Protection 7 | . . . 9 11 11 11 9 Energy Gun 7 | . 19 28 5 . . . 3 Energy Cannon 11 | . . . 15 20 22 11 14 Ballistic Gun 1 | . 7 . . . . . . Launcher 1 | . . . . 1 . 11 . Peak Build Rating 33 | 6 8 17 19 19 21 23 33 Average Rating 18 | 4 7 9 17 18 20 21 28 On Entrance 13 | . 6 8 10 19 19 21 23 Naked Turns . | . . . . . . . . Heaviest Build 50 | 14 25 20 30 30 32 34 50 Greatest Support 82 | 40 40 40 60 60 60 62 82 Greatest Overweight (x) . | . . . . . . . . Average Overweight (x) . | . . . . . . . . Largest Inventory Capacity 15 | 8 10 10 10 10 10 10 15 Average Capacity 10 | 6 9 10 10 10 10 10 11 Most Carried 15 | 2 10 10 10 10 10 10 15 Average Carried 9 | 1 6 10 9 10 9 10 10 Final Capacity 15 | 8 10 10 10 10 10 10 15 Final Carried 15 | 2 10 10 10 10 10 10 15 Class Distribution -------------------- 97% | Mutant Dominant Class ---------------- Mutant | -10/Materials Mutant | -10/Mines Mutant | -9/Materials Mutant | -9/Mines Mutant | -9/Exiles Mutant | -8/Mines Mutant | -8/Materials Resources | -11 -10 -10 -9 -9 -9 -8 -8 ----------- Run | Yrd Mat Min Mat Min Exi Min Mat Matter Collected 1101 | 229 321 10 165 4 . 166 206 Remotely . | . . . . . . . . Salvage Created 3366 | . 692 48 842 56 . 49 1679 Parts 202 | . 56 10 55 3 . 9 69 Haulers Intercepted 9 | . 1 . 3 . . . 5 Recyclers Shooed 1 | . 1 . . . . . . Parts Field Recycled . | . . . . . . . . Retrieved Matter . | . . . . . . . . Parts Self-Destructed . | . . . . . . . . Prevented . | . . . . . . . . Kills | -11 -10 -10 -9 -9 -9 -8 -8 ------- Run | Yrd Mat Min Mat Min Exi Min Mat Combat Hostiles Destroyed 78 | . 18 3 14 9 . 7 27 Guns 20 | . 13 2 4 . . . 1 Cannons 35 | . . . 7 3 . 1 24 AOE 21 | . 5 1 2 6 . 6 1 Classes Destroyed 13 | . 6 1 2 1 . . 3 Worker 4 | . 2 1 . . . . 1 Builder 2 | . . . . . . . 2 Tunneler 2 | . . 1 . . . 1 . Hauler 9 | . 1 . 3 . . . 5 Recycler 1 | . 1 . . . . . . Mechanic 1 | . . . . . . . 1 Operator 2 | . . . 1 1 . . . Watcher 7 | . 2 . 3 . . . 2 Swarmer 23 | . 6 3 1 . . 7 6 Grunt 34 | . 12 . 10 . . . 12 Sentry 10 | . . . 3 . . . 7 Hunter 2 | . . . . . . . 2 Assembled 9 | . . . . 9 . . . Best Kill Streak 7 | . 3 3 5 7 . 4 7 Combat Bots Only 7 | . 3 3 4 7 . 4 6 Max Kills in Single Turn 3 | . 3 2 1 2 . 3 2 Gunslinging . | . . . . . . . . Exploded 3 | . 3 1 1 1 . 3 1 Melee . | . . . . . . . . Uniques/NPCs Destroyed . | . . . . . . . . Combat | -11 -10 -10 -9 -9 -9 -8 -8 -------- Run | Yrd Mat Min Mat Min Exi Min Mat Hostile Shots Fired 237 | . 66 4 37 11 . 17 102 Missed 77 | . 19 2 10 4 . 3 39 Damage Taken 2052 | . 481 31 286 133 . 135 986 Core 283 | . 97 16 7 . . 28 135 Absorbed by Shields . | . . . . . . . . Core Remaining (%) 81 | 100 . 54 . . . 91 . Volleys Fired 231 | . 63 2 48 16 . 9 93 Largest 2 | . 2 2 2 2 . 1 2 Hottest 143 | . 100 80 136 136 . 68 143 Shots Fired 434 | . 122 4 93 26 . 9 180 Gun 169 | . 117 4 40 . . . 8 Cannon 250 | . . . 53 20 . 5 172 Launcher 15 | . 5 . . 6 . 4 . Special . | . . . . . . . . Kinetic 46 | . 46 . . . . . . Thermal 238 | . 53 . 53 20 . 5 107 Explosive 15 | . 5 . . 6 . 4 . Electromagnetic 135 | . 18 4 40 . . . 73 Robot Hit Streak 13 | . 9 3 13 4 . 4 12 Robot Miss Streak 4 | . 3 1 4 4 . 1 4 Penetration Max . | . . . . . . . . Secondary Targets 3 | . 2 1 . . . . . Max Gunslinging Chain 1 | . 1 1 . . . . . Shots Hit Robots 259 | . 74 3 55 9 . 4 114 Core Hits 142 | . 38 3 26 19 . 7 49 Critical Kills . | . . . . . . . . Critical Parts Destroyed . | . . . . . . . . Critical Strikes 3 | . 2 . . . . . 1 Burn 2 | . 1 . . . . . 1 Corrupt 1 | . 1 . . . . . . Melee Attacks 3 | . . . 2 . . . 1 Impact 3 | . . . 2 . . . 1 Slashing . | . . . . . . . . Piercing . | . . . . . . . . Sneak Attacks . | . . . . . . . . Combat Hostiles . | . . . . . . . . Follow-up Attacks . | . . . . . . . . Damage Inflicted 6819 | . 1218 104 1111 512 . 440 3434 Guns 1465 | . 946 34 377 . . . 108 Cannons 3798 | . . . 635 145 . 62 2956 Explosions 1421 | . 233 46 99 367 . 368 308 Melee . | . . . . . . . . Ramming 135 | . 39 24 . . . 10 62 Kinetic 332 | . 332 . . . . . . Thermal 3223 | . 425 46 734 145 . 62 1811 Explosive 968 | . 233 . . 367 . 368 . Electromagnetic 2161 | . 189 34 377 . . . 1561 Impact . | . . . . . . . . Slashing . | . . . . . . . . Piercing . | . . . . . . . . Highest Corruption . | . . . . . . . . Average Corruption . | . . . . . . . . Corruption Purged . | . . . . . . . . Corruption Blocked . | . . . . . . . . Overload Shots . | . . . . . . . . Overflow Damage 93 | . 1 . . 15 . 1 76 Projectiles 89 | . . . . 12 . 1 76 Explosions 4 | . 1 . . 3 . . . Melee . | . . . . . . . . Knockbacks . | . . . . . . . . Impact . | . . . . . . . . Kinetic . | . . . . . . . . Secondary . | . . . . . . . . Self-Inflicted Damage 160 | . . 16 . 28 . 24 92 Shots 5 | . . 1 . 1 . 1 2 Rammed 13 | . 6 1 . . . 1 5 Targets Rammed 17 | . 6 3 . . . 2 6 Kicked . | . . . . . . . . Crushed 4 | . . 2 . . . 1 1 Highest Temperature 275 | . 78 8 135 222 . . 275 Average Temperature 56 | . 21 6 45 87 . . 61 Received Heat Transfer 747 | . 213 . 114 60 . . 360 Siege Activations . | . . . . . . . . Robots Corrupted 2 | . . . . . . . 2 Combat Hostiles 1 | . . . . . . . 1 Parts Fried 6 | . . . 1 . . . 5 Impact Corruptions . | . . . . . . . . Robots Melted 1 | . . . 1 . . . . Combat Hostiles 1 | . . . 1 . . . . Parts Melted 10 | . 2 . 3 . . . 5 Heat Transferred 5419 | . 1332 . 1123 259 . 111 2594 Parts Sabotaged . | . . . . . . . . Parts Stolen . | . . . . . . . . Parts Stripped . | . . . . . . . . Power Chain Reactions 9 | . . 1 2 . . . 6 Alert | -11 -10 -10 -9 -9 -9 -8 -8 ------- Run | Yrd Mat Min Mat Min Exi Min Mat Peak Influence 568 | . 332 214 531 181 . 188 568 Initial 138 | . . 128 5 138 . . 10 Average 218 | . 224 194 349 159 . 108 205 Maximum Alert Level 2 | . 1 1 2 . . . 2 Low Security (%) 42 | 100 34 5 10 100 . 100 42 Level 1 51 | . 65 94 68 . . . 49 Level 2 6 | . . . 20 . . . 8 Level 3 . | . . . . . . . . Level 4 . | . . . . . . . . Level 5 . | . . . . . . . . High Security . | . . . . . . . . Max Security . | . . . . . . . . Squads Dispatched 15 | . 6 . 4 . . . 5 Investigation 10 | . 5 . 2 . . . 3 Extermination . | . . . . . . . . Reinforcement 4 | . 1 . 2 . . . 1 Assault 1 | . . . . . . . 1 Garrison . | . . . . . . . . Intercept . | . . . . . . . . Searches Triggered . | . . . . . . . . Construction Impeded 1 | . . . . . . . 1 Haulers Reinforced . | . . . . . . . . Active Scanning Responses . | . . . . . . . . Cargo Convoy Interrupts . | . . . . . . . . Stealth | -11 -10 -10 -9 -9 -9 -8 -8 --------- Run | Yrd Mat Min Mat Min Exi Min Mat Distress Signals 5 | . . . 2 . . . 3 Communications Jammed . | . . . . . . . . Distress Signals . | . . . . . . . . Times Spotted 114 | . 24 2 24 10 . 7 47 Peak Tracking Total 10 | . 4 2 5 10 . 4 6 Tactical Retreats 5 | . 1 . . 1 . . 3 Traps | -11 -10 -10 -9 -9 -9 -8 -8 ------- Run | Yrd Mat Min Mat Min Exi Min Mat Traps Triggered . | . . . . . . . . Indirectly . | . . . . . . . . Trap Hack Attempts . | . . . . . . . . Triggered . | . . . . . . . . Disarmed 1 | . 1 . . . . . . Reprogrammed . | . . . . . . . . Reused . | . . . . . . . . Traps Extracted . | . . . . . . . . Installed . | . . . . . . . . Triggered . | . . . . . . . . Machines | -11 -10 -10 -9 -9 -9 -8 -8 ---------- Run | Yrd Mat Min Mat Min Exi Min Mat Machines Disabled 9 | . 2 . . 1 . 1 5 Max in Single Turn 1 | . 1 . . 1 . 1 1 Garrison Access 1 | . . . . . . . 1 Machines Repaired . | . . . . . . . . Machines Dismantled . | . . . . . . . . Machines Sabotaged . | . . . . . . . . Overloaded Fab Kills . | . . . . . . . . Hacking | -11 -10 -10 -9 -9 -9 -8 -8 --------- Run | Yrd Mat Min Mat Min Exi Min Mat Machines Accessed 25 | . 8 1 6 . 2 . 8 Terminals 15 | . 6 . 4 . . . 5 Fabricators . | . . . . . . . . Repair Stations 1 | . . . . . . . 1 Recycling Units 5 | . 2 . 2 . . . 1 Scanalyzers 1 | . . . . . . . 1 Garrison Access . | . . . . . . . . Total Hacks 76 | . 23 1 19 . 2 . 31 Successful 50 | . 11 1 14 . 2 . 22 Failed 24 | . 11 . 4 . . . 9 Catastrophic 1 | . 1 . . . . . . Database Lockouts 2 | . 1 . 1 . . . . Manual 61 | . 21 . 17 . 1 . 22 Terminals 62 | . 21 . 17 . . . 24 Fabricators . | . . . . . . . . Repair Stations 2 | . . . . . . . 2 Recycling Units 5 | . 2 . 2 . . . 1 Scanalyzers 4 | . . . . . . . 4 Garrison Access . | . . . . . . . . Terminal Hacks 21 | . 4 1 8 . 2 . 6 Record 1 | . . . . . 1 . . Robot Analysis 6 | . 1 . 4 . . . 1 Prototype ID Bank 2 | . . . 1 . . . 1 Open Door 1 | . . 1 . . . . . Branch Access Points 1 | . . . 1 . . . . Terminal Index 1 | . . . . . . . 1 Alert Level 2 | . 1 . . . . . 1 Unreport Threat 1 | . . . . . . . 1 Locate Traps 2 | . 1 . . . . . 1 Disarm Traps 1 | . 1 . . . . . . Zone Layout 2 | . . . 2 . . . . Derelict Proto ID Bank 1 | . . . . . 1 . . Fabricator Hacks . | . . . . . . . . Repair Station Hacks 2 | . . . . . . . 2 Scan Component 2 | . . . . . . . 2 Recycling Unit Hacks . | . . . . . . . . Scanalyzer 4 | . . . . . . . 4 Insert Component 2 | . . . . . . . 2 Analyze 2 | . . . . . . . 2 Garrison Access Hacks . | . . . . . . . . Unauthorized Hacks 23 | . 7 . 6 . . . 10 Terminals 18 | . 5 . 4 . . . 9 Track 1 | . . . . . . . 1 Assimilate 4 | . 1 . 1 . . . 2 Botnet 7 | . 3 . 2 . . . 2 Operators 3 | . 1 . 1 . . . 1 Skim 3 | . . . . . . . 3 Fabricators . | . . . . . . . . Repair Stations . | . . . . . . . . Recycling Units 5 | . 2 . 2 . . . 1 Tunnel 5 | . 2 . 2 . . . 1 Scanalyzers . | . . . . . . . . Garrison Access . | . . . . . . . . Data Cores Recovered . | . . . . . . . . Used . | . . . . . . . . Hacking Detections 16 | . 6 . 3 . . . 7 Full Trace Events 7 | . 4 . . . . . 3 Feedback Events . | . . . . . . . . Feedback Blocked . | . . . . . . . . Robot Schematics Acquired . | . . . . . . . . Robots Built . | . . . . . . . . Authchips . | . . . . . . . . Time . | . . . . . . . . Total Robot Build Rating . | . . . . . . . . Part Schematics Acquired 2 | . . . . . . . 2 Parts Built . | . . . . . . . . Authchips . | . . . . . . . . Time . | . . . . . . . . Total Part Build Rating . | . . . . . . . . Parts Repaired . | . . . . . . . . Time . | . . . . . . . . Parts Recycled . | . . . . . . . . Recycled Matter . | . . . . . . . . Retrieved Matter . | . . . . . . . . Retrieved Components . | . . . . . . . . Parts Scanalyzed 2 | . . . . . . . 2 Part Schematics Acquired 2 | . . . . . . . 2 Parts Damaged . | . . . . . . . . Bothacking | -11 -10 -10 -9 -9 -9 -8 -8 ------------ Run | Yrd Mat Min Mat Min Exi Min Mat Used RIF Installer . | . . . . . . . . Robots Hacked . | . . . . . . . . Non-combat . | . . . . . . . . Combat . | . . . . . . . . Robot Hacks Applied . | . . . . . . . . Relay Couplers Released 1 | . . . . . . . 1 Machine Destruction 1 | . . . . . . . 1 Fabnet Peak Effective % . | . . . . . . . . Robots Rewired . | . . . . . . . . Allies Hacked . | . . . . . . . . Hacks Repelled . | . . . . . . . . Allies | -11 -10 -10 -9 -9 -9 -8 -8 -------- Run | Yrd Mat Min Mat Min Exi Min Mat Total Allies 6 | . 1 3 1 . . . 1 Largest Group 3 | . 1 3 3 1 . . 1 Highest-Rated Group 83 | . 10 83 83 10 . . 10 Highest-Rated Ally 31 | . 10 31 31 10 . . 10 Total Orders 10 | . . . . 1 . . 9 STAY 6 | . . . . 1 . . 5 FOLLOW 4 | . . . . . . . 4 Ally Attacks 35 | . . . 35 . . . . Total Damage 488 | . . . 488 . . . . Kills 7 | . . . 7 . . . . Allies Corrupted . | . . . . . . . . Allies Melted . | . . . . . . . . Intel | -11 -10 -10 -9 -9 -9 -8 -8 ------- Run | Yrd Mat Min Mat Min Exi Min Mat Robot Analysis Total 6 | . 1 . 4 . . . 1 Derelict Logs Recovered 2 | . . 1 . 1 . . . Drone Launches . | . . . . . . . . Drone Recoveries . | . . . . . . . . Exploration | -11 -10 -10 -9 -9 -9 -8 -8 ------------- Run | Yrd Mat Min Mat Min Exi Min Mat Turns Passed 5752 | 85 1148 421 960 292 607 581 1658 Spaces Moved 2827 | 49 549 252 470 121 377 356 653 Core 3 | 3 . . . . . . . Treads 2824 | 46 549 252 470 121 377 356 653 Legs . | . . . . . . . . Wheels . | . . . . . . . . Hover . | . . . . . . . . Flight . | . . . . . . . . Fastest Speed 50 | 50 160 160 160 160 160 155 155 Average Speed 159 | 153 160 160 160 160 160 155 158 Slowest Speed 160 | 160 160 160 160 160 160 160 160 Overloaded Moves . | . . . . . . . . Propulsion Burnouts . | . . . . . . . . Robots Hopped . | . . . . . . . . Cave-ins Triggered . | . . . . . . . . Exploration Rate (%) 54 | 4 93 51 53 27 60 89 62 Regions Visited 7 Branch Regions 4 Pre-discovered Areas 6 | . 2 . 2 . 1 . 1 Known Exits Taken 1 | . . . 1 . . . . Unknown Exits Taken 6 | 1 1 1 . 1 1 1 . Scrap Searched 4 | . . . . 1 . 3 . Spaces Dug 5 | . . . 2 . . . 3 Terrain Destroyed 176 | . 19 4 11 58 . 39 45 Melee 3 | . . . 2 . . . 1 Projectile 24 | . . . . . . 1 23 AOE 149 | . 19 4 9 58 . 38 21 Terrain Rammed . | . . . . . . . . Walls Destroyed . | . . . . . . . . Machines Disabled . | . . . . . . . . Actions | -11 -10 -10 -9 -9 -9 -8 -8 --------- Run | Yrd Mat Min Mat Min Exi Min Mat Total 3635 | 56 694 265 583 193 383 372 1089 Wait 418 | . 48 . 28 55 . . 287 Move 2820 | 48 548 251 469 120 376 355 653 Hop . | . . . . . . . . Pick Up 40 | 2 10 3 10 . 3 . 12 Fast Attach 18 | 6 4 . 4 . . . 4 Attach 9 | . 1 . 3 . . . 5 Detach 2 | . 1 . . . . . 1 Swap 38 | . 6 3 8 2 1 4 14 Drop 39 | . 7 3 11 . 3 2 13 Fire 231 | . 63 2 48 16 . 9 93 Melee 3 | . . . 2 . . . 1 Ram . | . . . . . . . . Kick . | . . . . . . . . Crush 17 | . 6 3 . . . 2 6 Escape Stasis . | . . . . . . . . Rewire . | . . . . . . . . Trap . | . . . . . . . . Miscellaneous . | . . . . . . . . Route ------- -11/Scrapyard -10/Materials (discovered 4 exits: *Mat x2 / *Min x2) -10/Mines (discovered 2 exits: *Mat x2) -9/Materials (discovered 3 exits: *Mat x2 / *Min) -9/Mines -9/Exiles -8/Mines (discovered 2 exits: *Mat x2) -8/Materials (discovered 1 exit: [*Fac]) History --------- Turn | Location | Event 8 | -11/Scrapyard | Discovered new exit (range 16) 86 | -11/Scrapyard | Entered Materials 305 | -10/Materials | Build established: Mutant 603 | -10/Materials | Discovered new exit (range 7) 695 | -10/Materials | Discovered new exit (range 14) 779 | -10/Materials | Discovered new exit (range 3) 908 | -10/Materials | Central database locked down 984 | -10/Materials | Discovered new exit (range 8) 1234 | -10/Materials | Entered Mines 1439 | -10/Mines | Learned Materials interactive machine intel 1442 | -10/Mines | Discovered new exit (range 8) 1448 | -10/Mines | Received a Mining Laser from a helpful Derelict 1586 | -10/Mines | Found the Drone Emporium 1593 | -10/Mines | Found Prototype Device 1593 | -10/Mines | Identified Sensor Drone Bay 1636 | -10/Mines | Discovered new exit (range 11) 1655 | -10/Mines | Entered Materials 1655 | -9/Materials | Accompanied by 3 allies 1655 | -9/Materials | Evolved 2 slots: Propulsion x1, Utility x1 1656 | -9/Materials | Loaded intel: 18 interactive machine locations 1660 | -9/Materials | Led the pair of lost Derelicts to an unsafe place 1724 | -9/Materials | Identified exit to Mines 1959 | -9/Materials | Discovered new exit (range 16) 2512 | -9/Materials | Discovered new exit (range 7) 2512 | -9/Materials | Central database locked down 2615 | -9/Materials | Entered Mines 2615 | -9/Mines | Accompanied by 1 ally 2643 | -9/Mines | Met a Derelict bent on vengeance 2689 | -9/Mines | Learned Materials emergency access door positions 2690 | -9/Mines | Assembled infested the area 2695 | -9/Mines | Assisted by a Guerilla fighting off Assembled 2742 | -9/Mines | Destroyed 7 combat bots 2901 | -9/Mines | Deemed a non-threat by the Exiles lab entrance 2901 | -9/Mines | Discovered new exit (range 5) 2907 | -9/Mines | Entered Exiles 2951 | -9/Exiles | Met 8R-AWN 2977 | -9/Exiles | Met EX-HEX 3023 | -9/Exiles | Met EX-BIN 3041 | -9/Exiles | Aligned with FarCom system 3042 | -9/Exiles | Given EX-Vault access code 3079 | -9/Exiles | Opened EX-Vault 3092 | -9/Exiles | Found Trap Reconfigurator 3124 | -9/Exiles | Warned to stay clear of 0b10 Research branches 3178 | -9/Exiles | Learned location of Zion (-7) 3418 | -9/Exiles | Met EX-DEC 3496 | -9/Exiles | Discovered new exit (range 14) 3514 | -9/Exiles | Left Exiles lab with Trap Reconfigurator 3514 | -9/Exiles | Entered Mines 3876 | -8/Mines | Discovered new exit (range 8) 4088 | -8/Mines | Discovered new exit (range 4) 4095 | -8/Mines | Entered Materials 4095 | -8/Materials | Evolved 2 slots: Propulsion x1, Utility x1 5226 | -8/Materials | Discovered new exit (range 12) 5729 | -8/Materials | Found Prototype Launcher 5729 | -8/Materials | Identified Rocket Array 5753 | -8/Materials | Self-destructed Last Messages --------------- 05692_ Destroyed System Restoration Module. 05695_ Technician 3a reports 0b10 security level has lowered to 1. 05706_ W-25 Informer sends out distress signal. 05718_ Y-45 Defender destroyed. 05719_ Technician 3a reports 0b10 security level has risen to 2. 05729_ Acquired Prototype Launcher. 05729_ Identified Rocket Array. 05731_ Dropped Rocket Array. 05731_ Acquired Cld. Particle Cannon. 05740_ R-06 Scavenger collects Heat Sink. 05743_ R-06 Scavenger collects Lgt. Armor Plating. 05744_ Destroyed Imp. Hover Unit. 05747_ ALERT: Garrison Access compromised, dispatching assault squad. 05747_ Garrison Access disabled. 05747_ Relay Coupler [Duelist] tumbles out of Garrison Access. Map ----- +----------------------------------------------------+ | ????????????????????????????#########""" | | ?????????????????###+######## / | | ?????????????????# o # ! ! | | ?????????????????# # ==! | | ?????????????????# / =! | | ?????????????????# #########+## | | ?????????????????# """ #??????##%## | | ?????????????????# """"" !#???????#=#? | | ?????????????????# """"" #???????#[#? | | ?????????????????# """"" #??????##%#? | | ?????????????????# """ #??????##%## | | ???????#""???????# #???#####%## | | ???????#"G"??????# ####### =*= | | ???##### "####### % %%! % | | ???# ! ####### T | | ???# ""T"" #????## | | ???# ] !!! """" #?????# [ | | ???# !! #############?????### ## | | ???#= """ !! #####?##???????######o#? | | ?????? """ [[#??????????# # ## | | ???# """ [[#??????????#! / | | ???# ]]#?????###### # | | ???# ] ]#?????# # # | | ???##########;; !!#?????###### + | | ??????????????#w !!#?????????## #### | | ??????????????# @#####??????????# #??# | | ??????????????# r ;#?????????????# #??# | | ??????????????# ##?????????????# #??# | | ??????????????# #??????????????######??# | | ??????????????#r #??????????????????????# | | ??????????????# #??????????????????????# | | ??????????????# #??????????????????????# | | ??????????????# #??????????????###?????# | | ??????????????# #??????????????# ####### | | ??????????????# #??????????????#[%! # | | ??????????????#% ???????????????# + | | ?????????????? ???????????????# !== # | | ?????????????? ???????????????# !== # | | ?????????????? T ??gg???????????# !=/ # | | ?????????????? ???????????????# + | | ??????????????? ? ???????????????# """ # | | ?????????????????????????????????# """ # | | ?????????????????????????????????# """ # | | ?????????????????????????????????# # | | ?????????????????????????????????# ! # | | ?????????????????????????????????######### | | ?????????????????????????????????????????? | | ?????????????????????????????????????????? | | ?????????????????????????????????????????? | | ?????????????????????????????????????????? | +----------------------------------------------------+ Best States ------------- Heat Dissipation 45 Energy Generation 23 Energy Capacity 290 Matter Stores 300 Matter Capacity 300 Sight Range 16 Terrain Scan Density 10 Armor Coverage 150 Evasion (%) 40 Recoil Reduction 4 Offensive Hacking 10 Item Schematics ----------------- Adv. Targeting Computer | -8/Materials | Scanalyzed Flak Cannon | -8/Materials | Scanalyzed Robot Schematics ------------------ None Fabricated ------------ Nothing Alien Tech Used ----------------- None Achievements -------------- None Challenges ------------ None Game ------ Seed ReactionSeismicSpecial Manual? 0 Play Time 00:40:49 Cumulative 183.8 hours Start 2024.11.19 @ 05:57:57 End 2024.11.19 @ 17:53:57 Sessions 3 Manual Loads 0 Difficulty Rogue Special Mode None Game No. 116 Rogue 80 Adventurer 36 Explorer 0 Win Type - Total 3 Types 2/0/0/1/0/0/0/0/0 Lore% 56 Gallery% 65 Achievement% 57 Wizard Run 0 Options --------- Layout 1 ASCII 0 Keyboard 0 Movement Numpad Keybinds 0 Fullscreen 1 Font 48/Smallcaps Map View 50x35 Zoom Use 0% Tactical HUD 1 Map Filters NONE Filters NONE Steam 1 RUN: 4245a68f-fdee-489e-a197-85ccbce64705